[Event "Titled Tuesday Blitz June 27 Early 2023"]
[White "Mamedov, Edgar"]
[Black "Bryakin, Mikhail"]
[WhiteFideId "13739980"]
[BlackFideId "4165314"]
[WhiteElo "2562"]
[BlackElo "2765"]
[Result "1-0"]
[Round "9"]
[TimeControl "180+2"]
[Date "2023.06.27"]
[WhiteClock "0:00:33"]
[BlackClock "0:00:03"]
[Board "36"]

1. d4 {[%clk 0:03:00]}  f5 {[%clk 0:02:57]} 2. g3 {[%clk 0:02:58]}  Nf6 {[%clk 0:02:57]} 3. Bg2 {[%clk 0:02:58]}  d6 {[%clk 0:02:58]} 4. Nf3 {[%clk 0:02:57]}  g6 {[%clk 0:02:58]} 5. O-O {[%clk 0:02:58]}  Bg7 {[%clk 0:02:59]} 6. c4 {[%clk 0:02:58]}  O-O {[%clk 0:02:59]} 7. Nc3 {[%clk 0:02:58]}  Qe8 {[%clk 0:02:54]} 8. b3 {[%clk 0:02:57]}  a5 {[%clk 0:02:52]} 9. Re1 {[%clk 0:02:54]}  Ne4 {[%clk 0:02:42]} 10. Bb2 {[%clk 0:02:50]}  Nxc3 {[%clk 0:02:21]} 11. Bxc3 {[%clk 0:02:50]}  b5 {[%clk 0:02:21]} 12. cxb5 {[%clk 0:02:41]}  Qxb5 {[%clk 0:02:19]} 13. Rc1 {[%clk 0:02:33]}  Bb7 {[%clk 0:02:16]} 14. d5 {[%clk 0:02:29]}  Qxd5 {[%clk 0:02:05]} 15. Bxg7 {[%clk 0:02:27]}  Kxg7 {[%clk 0:02:00]} 16. Rxc7 {[%clk 0:02:27]}  Qxd1 {[%clk 0:00:38]} 17. Rxd1 {[%clk 0:02:25]}  Be4 {[%clk 0:00:24]} 18. Rxe7+ {[%clk 0:02:21]}  Kf6 {[%clk 0:00:25]} 19. Rxh7 {[%clk 0:02:18]}  d5 {[%clk 0:00:26]} 20. Nd4 {[%clk 0:02:10]}  Bxg2 {[%clk 0:00:20]} 21. Kxg2 {[%clk 0:02:10]}  Na6 {[%clk 0:00:19]} 22. Rc1 {[%clk 0:02:07]}  Rfc8 {[%clk 0:00:14]} 23. Rxc8 {[%clk 0:02:06]}  Rxc8 {[%clk 0:00:15]} 24. Ra7 {[%clk 0:02:06]}  Nb4 {[%clk 0:00:13]} 25. Rxa5 {[%clk 0:02:01]}  Ke5 {[%clk 0:00:13]} 26. Nf3+ {[%clk 0:01:50]}  Kf6 {[%clk 0:00:08]} 27. a3 {[%clk 0:01:49]}  Nc2 {[%clk 0:00:08]} 28. Rxd5 {[%clk 0:01:46]}  Nxa3 {[%clk 0:00:08]} 29. Rd6+ {[%clk 0:01:45]}  Kg7 {[%clk 0:00:08]} 30. Nh4 {[%clk 0:01:44]}  Rc2 {[%clk 0:00:05]} 31. Rxg6+ {[%clk 0:01:42]}  Kf7 {[%clk 0:00:06]} 32. Ra6 {[%clk 0:01:40]}  Nb1 {[%clk 0:00:06]} 33. Nxf5 {[%clk 0:01:38]}  Rxe2 {[%clk 0:00:07]} 34. h4 {[%clk 0:01:35]}  Nc3 {[%clk 0:00:07]} 35. Nd4 {[%clk 0:01:31]}  Rd2 {[%clk 0:00:07]} 36. Nf3 {[%clk 0:01:31]}  Rb2 {[%clk 0:00:08]} 37. Rd6 {[%clk 0:01:15]}  Ke7 {[%clk 0:00:07]} 38. Rd3 {[%clk 0:01:11]}  Nb5 {[%clk 0:00:05]} 39. h5 {[%clk 0:01:06]}  Kf6 {[%clk 0:00:06]} 40. Nd4 {[%clk 0:01:02]}  Nd6 {[%clk 0:00:05]} 41. Re3 {[%clk 0:01:02]}  Nf7 {[%clk 0:00:04]} 42. Rf3+ {[%clk 0:00:58]}  Kg7 {[%clk 0:00:04]} 43. Ne6+ {[%clk 0:00:58]}  Kg8 {[%clk 0:00:05]} 44. Re3 {[%clk 0:00:54]}  Nd6 {[%clk 0:00:04]} 45. g4 {[%clk 0:00:52]}  Kf7 {[%clk 0:00:04]} 46. Ng5+ {[%clk 0:00:52]}  Kg7 {[%clk 0:00:04]} 47. Kg3 {[%clk 0:00:50]}  Rb1 {[%clk 0:00:03]} 48. Re7+ {[%clk 0:00:47]}  Kg8 {[%clk 0:00:03]} 49. h6 {[%clk 0:00:42]}  Rg1+ {[%clk 0:00:03]} 50. Kf4 {[%clk 0:00:42]}  Rh1 {[%clk 0:00:03]} 51. h7+ {[%clk 0:00:41]}  Kh8 {[%clk 0:00:03]} 52. Rd7 {[%clk 0:00:38]}  Nf7 {[%clk 0:00:01]} 53. Nxf7+ {[%clk 0:00:36]}  Kxh7 {[%clk 0:00:02]} 54. Ne5+ {[%clk 0:00:37]}  Kg8 {[%clk 0:00:02]} 55. Kf5 {[%clk 0:00:36]}  Rh6 {[%clk 0:00:02]} 56. g5 {[%clk 0:00:36]}  Rb6 {[%clk 0:00:03]} 57. f4 {[%clk 0:00:35]}  Rxb3 {[%clk 0:00:02]} 58. g6 {[%clk 0:00:36]}  Rb6 {[%clk 0:00:03]} 59. Kg5 {[%clk 0:00:36]}  Rb1 {[%clk 0:00:03]} 60. f5 {[%clk 0:00:36]}  Rb8 {[%clk 0:00:04]} 61. f6 {[%clk 0:00:34]}  Ra8 {[%clk 0:00:04]} 62. Rg7+ {[%clk 0:00:34]}  Kf8 {[%clk 0:00:04]} 63. Nd7+ {[%clk 0:00:34]}  Ke8 {[%clk 0:00:03]} 64. Rg8+ {[%clk 0:00:33]} 1-0


[Site "https://www.chess.com"]

[Event "Titled Tuesday Blitz June 27 Early 2023"]
[White "Delorme, Axel"]
[Black "Renjith, Sravan"]
[WhiteFideId "632023"]
[BlackFideId "4306783"]
[WhiteElo "2556"]
[BlackElo "2743"]
[Result "0-1"]
[Round "9"]
[TimeControl "180+2"]
[Date "2023.06.27"]
[WhiteClock "0:00:12"]
[BlackClock "0:00:51"]
[Board "37"]

1. e4 {[%clk 0:03:00]}  e5 {[%clk 0:02:59]} 2. Nf3 {[%clk 0:02:56]}  Nc6 {[%clk 0:02:58]} 3. Bb5 {[%clk 0:02:57]}  f5 {[%clk 0:02:56]} 4. d3 {[%clk 0:02:56]}  fxe4 {[%clk 0:02:55]} 5. dxe4 {[%clk 0:02:57]}  Nf6 {[%clk 0:02:55]} 6. O-O {[%clk 0:02:58]}  d6 {[%clk 0:02:52]} 7. Bc4 {[%clk 0:02:54]}  Bg4 {[%clk 0:02:27]} 8. h3 {[%clk 0:02:52]}  Bh5 {[%clk 0:02:28]} 9. Nc3 {[%clk 0:02:52]}  Be7 {[%clk 0:02:24]} 10. Be3 {[%clk 0:02:20]}  Na5 {[%clk 0:02:18]} 11. Bb5+ {[%clk 0:02:13]}  c6 {[%clk 0:02:18]} 12. Be2 {[%clk 0:02:13]}  Bxf3 {[%clk 0:02:00]} 13. Bxf3 {[%clk 0:02:09]}  Nc4 {[%clk 0:02:00]} 14. Bc1 {[%clk 0:02:00]}  O-O {[%clk 0:01:58]} 15. b3 {[%clk 0:01:54]}  Nb6 {[%clk 0:01:54]} 16. a4 {[%clk 0:01:52]}  Nbd7 {[%clk 0:01:46]} 17. Ba3 {[%clk 0:01:49]}  a5 {[%clk 0:01:44]} 18. Bxd6 {[%clk 0:01:48]}  Nc5 {[%clk 0:01:44]} 19. Bxe7 {[%clk 0:01:44]}  Qxe7 {[%clk 0:01:45]} 20. Qe2 {[%clk 0:01:43]}  Ne6 {[%clk 0:01:43]} 21. Rad1 {[%clk 0:01:35]}  Nd4 {[%clk 0:01:43]} 22. Qc4+ {[%clk 0:01:36]}  Kh8 {[%clk 0:01:43]} 23. Rd3 {[%clk 0:01:02]}  Nd7 {[%clk 0:01:31]} 24. Bd1 {[%clk 0:01:00]}  Nb6 {[%clk 0:01:28]} 25. Rxd4 {[%clk 0:00:46]}  Nxc4 {[%clk 0:01:21]} 26. Rxc4 {[%clk 0:00:46]}  Rad8 {[%clk 0:01:20]} 27. Bg4 {[%clk 0:00:42]}  Rd4 {[%clk 0:01:15]} 28. Be2 {[%clk 0:00:39]}  Rfd8 {[%clk 0:01:06]} 29. Nd1 {[%clk 0:00:35]}  Rxc4 {[%clk 0:01:05]} 30. Bxc4 {[%clk 0:00:35]}  Rd2 {[%clk 0:01:05]} 31. Ne3 {[%clk 0:00:35]}  Qc5 {[%clk 0:01:04]} 32. Bd3 {[%clk 0:00:27]}  b5 {[%clk 0:01:03]} 33. axb5 {[%clk 0:00:26]}  cxb5 {[%clk 0:01:04]} 34. Ra1 {[%clk 0:00:23]}  Qc3 {[%clk 0:00:59]} 35. Rb1 {[%clk 0:00:17]}  h5 {[%clk 0:00:56]} 36. Nf1 {[%clk 0:00:17]}  Rxd3 {[%clk 0:00:55]} 37. cxd3 {[%clk 0:00:16]}  Qxd3 {[%clk 0:00:56]} 38. Ra1 {[%clk 0:00:16]}  Qc3 {[%clk 0:00:52]} 39. Rb1 {[%clk 0:00:16]}  a4 {[%clk 0:00:51]} 40. bxa4 {[%clk 0:00:16]}  bxa4 {[%clk 0:00:52]} 41. Ne3 {[%clk 0:00:16]}  a3 {[%clk 0:00:52]} 42. Nd1 {[%clk 0:00:12]}  Qd4 {[%clk 0:00:51]} 0-1


[Site "https://www.chess.com"]

[Event "Titled Tuesday Blitz June 27 Early 2023"]
[White "Preotu, Razvan"]
[Black "Turzo, Attila"]
[WhiteFideId "2613280"]
[BlackFideId "704954"]
[WhiteElo "2714"]
[BlackElo "2553"]
[Result "1-0"]
[Round "9"]
[TimeControl "180+2"]
[Date "2023.06.27"]
[WhiteClock "0:00:09"]
[BlackClock "0:00:06"]
[Board "38"]

1. e4 {[%clk 0:02:58]}  d6 {[%clk 0:02:57]} 2. d4 {[%clk 0:02:58]}  Nf6 {[%clk 0:02:57]} 3. Nc3 {[%clk 0:02:59]}  g6 {[%clk 0:02:57]} 4. Be3 {[%clk 0:02:59]}  Bg7 {[%clk 0:02:56]} 5. Qd2 {[%clk 0:03:00]}  c6 {[%clk 0:02:56]} 6. O-O-O {[%clk 0:03:00]}  b5 {[%clk 0:02:54]} 7. f3 {[%clk 0:02:47]}  b4 {[%clk 0:02:43]} 8. Nce2 {[%clk 0:02:41]}  a5 {[%clk 0:02:43]} 9. Bh6 {[%clk 0:02:38]}  Bxh6 {[%clk 0:02:36]} 10. Qxh6 {[%clk 0:02:39]}  Qc7 {[%clk 0:02:33]} 11. Nh3 {[%clk 0:02:06]}  a4 {[%clk 0:02:24]} 12. Ng5 {[%clk 0:02:06]}  b3 {[%clk 0:02:23]} 13. cxb3 {[%clk 0:02:04]}  axb3 {[%clk 0:02:22]} 14. a3 {[%clk 0:02:05]}  c5 {[%clk 0:01:56]} 15. d5 {[%clk 0:01:30]}  c4 {[%clk 0:01:55]} 16. Nc3 {[%clk 0:01:30]}  Qc5 {[%clk 0:01:54]} 17. Kb1 {[%clk 0:01:17]}  Nbd7 {[%clk 0:01:51]} 18. Qg7 {[%clk 0:01:11]}  Rf8 {[%clk 0:01:48]} 19. Nxh7 {[%clk 0:00:41]}  Nxh7 {[%clk 0:01:44]} 20. Qxh7 {[%clk 0:00:42]}  Nb6 {[%clk 0:01:33]} 21. Qg7 {[%clk 0:00:36]}  f6 {[%clk 0:01:28]} 22. Qxg6+ {[%clk 0:00:35]}  Kd8 {[%clk 0:01:28]} 23. Qh6 {[%clk 0:00:36]}  Re8 {[%clk 0:01:20]} 24. Qd2 {[%clk 0:00:37]}  Na4 {[%clk 0:01:15]} 25. Nxa4 {[%clk 0:00:34]}  Rxa4 {[%clk 0:01:16]} 26. Qd4 {[%clk 0:00:30]}  c3 {[%clk 0:00:47]} 27. Qxc5 {[%clk 0:00:26]}  dxc5 {[%clk 0:00:46]} 28. bxc3 {[%clk 0:00:26]}  c4 {[%clk 0:00:43]} 29. Rd4 {[%clk 0:00:21]}  Ba6 {[%clk 0:00:43]} 30. Kb2 {[%clk 0:00:19]}  Kc7 {[%clk 0:00:44]} 31. h4 {[%clk 0:00:19]}  Bb5 {[%clk 0:00:41]} 32. h5 {[%clk 0:00:19]}  Rea8 {[%clk 0:00:41]} 33. h6 {[%clk 0:00:17]}  Rxa3 {[%clk 0:00:39]} 34. Bxc4 {[%clk 0:00:17]}  Ra2+ {[%clk 0:00:37]} 35. Kxb3 {[%clk 0:00:18]}  Bd7 {[%clk 0:00:19]} 36. d6+ {[%clk 0:00:08]}  exd6 {[%clk 0:00:18]} 37. Bd5 {[%clk 0:00:08]}  Rb8+ {[%clk 0:00:11]} 38. Kxa2 {[%clk 0:00:08]}  Rb6 {[%clk 0:00:08]} 39. h7 {[%clk 0:00:08]}  Ra6+ {[%clk 0:00:08]} 40. Kb2 {[%clk 0:00:09]}  Rb6+ {[%clk 0:00:08]} 41. Rb4 {[%clk 0:00:09]}  Ra6 {[%clk 0:00:06]} 42. h8=Q {[%clk 0:00:09]} 1-0


[Site "https://www.chess.com"]

[Event "Titled Tuesday Blitz June 27 Early 2023"]
[White "djokovic74"]
[Black "Ritvin, Stanislav"]
[BlackFideId "2011751"]
[WhiteElo "2681"]
[BlackElo "2518"]
[Result "1-0"]
[Round "9"]
[TimeControl "180+2"]
[Date "2023.06.27"]
[WhiteClock "0:00:28"]
[BlackClock "0:00:10"]
[Board "40"]

1. e4 {[%clk 0:03:00]}  e5 {[%clk 0:02:59]} 2. Nf3 {[%clk 0:03:01]}  Nc6 {[%clk 0:03:00]} 3. Bb5 {[%clk 0:03:01]}  Nf6 {[%clk 0:02:59]} 4. O-O {[%clk 0:03:01]}  Nxe4 {[%clk 0:02:59]} 5. d4 {[%clk 0:03:02]}  Nd6 {[%clk 0:02:59]} 6. Ba4 {[%clk 0:03:03]}  exd4 {[%clk 0:02:48]} 7. c3 {[%clk 0:03:03]}  Be7 {[%clk 0:02:12]} 8. cxd4 {[%clk 0:03:02]}  O-O {[%clk 0:02:12]} 9. d5 {[%clk 0:03:03]}  Nb8 {[%clk 0:02:12]} 10. Nc3 {[%clk 0:03:00]}  Bf6 {[%clk 0:02:12]} 11. Bf4 {[%clk 0:02:51]}  Bxc3 {[%clk 0:01:23]} 12. bxc3 {[%clk 0:02:50]}  Ne4 {[%clk 0:01:19]} 13. Qd4 {[%clk 0:02:39]}  f5 {[%clk 0:01:14]} 14. d6 {[%clk 0:02:27]}  cxd6 {[%clk 0:00:59]} 15. Bb3+ {[%clk 0:02:27]}  Kh8 {[%clk 0:00:58]} 16. Rfe1 {[%clk 0:02:02]}  Nc6 {[%clk 0:00:55]} 17. Qd3 {[%clk 0:01:58]}  Qf6 {[%clk 0:00:50]} 18. Rac1 {[%clk 0:01:25]}  Ne5 {[%clk 0:00:50]} 19. Qe3 {[%clk 0:01:21]}  Ng4 {[%clk 0:00:48]} 20. Qe2 {[%clk 0:01:03]}  Ngxf2 {[%clk 0:00:30]} 21. h3 {[%clk 0:01:03]}  Qg6 {[%clk 0:00:20]} 22. Kh2 {[%clk 0:01:03]}  Qh5 {[%clk 0:00:19]} 23. Kg1 {[%clk 0:00:48]}  Rf6 {[%clk 0:00:18]} 24. Ng5 {[%clk 0:00:32]}  h6 {[%clk 0:00:10]} 25. Qxh5 {[%clk 0:00:28]} 1-0


[Site "https://www.chess.com"]

[Event "Titled Tuesday Blitz June 27 Early 2023"]
[White "Miszler, Levente"]
[Black "Karttunen, Mika"]
[WhiteFideId "763276"]
[BlackFideId "502081"]
[WhiteElo "2486"]
[BlackElo "2656"]
[Result "1/2-1/2"]
[Round "9"]
[TimeControl "180+2"]
[Date "2023.06.27"]
[WhiteClock "0:00:09"]
[BlackClock "0:00:14"]
[Board "42"]

1. Nf3 {[%clk 0:03:00]}  Nf6 {[%clk 0:02:59]} 2. c4 {[%clk 0:03:01]}  e6 {[%clk 0:02:57]} 3. g3 {[%clk 0:03:02]}  d5 {[%clk 0:02:57]} 4. Bg2 {[%clk 0:03:02]}  c5 {[%clk 0:02:57]} 5. cxd5 {[%clk 0:03:02]}  exd5 {[%clk 0:02:57]} 6. O-O {[%clk 0:03:02]}  Nc6 {[%clk 0:02:56]} 7. d4 {[%clk 0:03:03]}  Be6 {[%clk 0:02:44]} 8. a3 {[%clk 0:03:03]}  h6 {[%clk 0:02:36]} 9. dxc5 {[%clk 0:03:03]}  Bxc5 {[%clk 0:02:35]} 10. b4 {[%clk 0:03:03]}  Bb6 {[%clk 0:02:35]} 11. Bb2 {[%clk 0:03:04]}  O-O {[%clk 0:02:32]} 12. Nc3 {[%clk 0:03:04]}  Ne4 {[%clk 0:02:08]} 13. Na4 {[%clk 0:03:00]}  Bc7 {[%clk 0:01:39]} 14. Nd2 {[%clk 0:02:59]}  f5 {[%clk 0:00:58]} 15. Nxe4 {[%clk 0:02:56]}  dxe4 {[%clk 0:00:58]} 16. Nc5 {[%clk 0:02:56]}  Qxd1 {[%clk 0:00:56]} 17. Rfxd1 {[%clk 0:02:57]}  Bc4 {[%clk 0:00:55]} 18. Rd7 {[%clk 0:02:56]}  Rf7 {[%clk 0:00:55]} 19. Rad1 {[%clk 0:02:52]}  b6 {[%clk 0:00:46]} 20. Rxf7 {[%clk 0:02:50]}  Bxf7 {[%clk 0:00:46]} 21. Na6 {[%clk 0:02:45]}  Be5 {[%clk 0:00:46]} 22. b5 {[%clk 0:02:33]}  Bxb2 {[%clk 0:00:43]} 23. bxc6 {[%clk 0:02:33]}  Rc8 {[%clk 0:00:38]} 24. c7 {[%clk 0:02:33]}  Bf6 {[%clk 0:00:38]} 25. Bh3 {[%clk 0:02:18]}  g6 {[%clk 0:00:31]} 26. Rc1 {[%clk 0:02:07]}  h5 {[%clk 0:00:29]} 27. e3 {[%clk 0:02:06]}  Bd5 {[%clk 0:00:28]} 28. Bf1 {[%clk 0:02:05]}  Kf7 {[%clk 0:00:28]} 29. Bc4 {[%clk 0:01:44]}  Bxc4 {[%clk 0:00:25]} 30. Rxc4 {[%clk 0:01:45]}  Ke7 {[%clk 0:00:22]} 31. Rc6 {[%clk 0:01:39]}  g5 {[%clk 0:00:21]} 32. Kf1 {[%clk 0:01:35]}  h4 {[%clk 0:00:20]} 33. Ke2 {[%clk 0:01:34]}  hxg3 {[%clk 0:00:20]} 34. hxg3 {[%clk 0:01:35]}  g4 {[%clk 0:00:20]} 35. Nb4 {[%clk 0:01:28]}  Be5 {[%clk 0:00:20]} 36. Nd5+ {[%clk 0:01:21]}  Kd7 {[%clk 0:00:20]} 37. Rh6 {[%clk 0:01:19]}  Bxc7 {[%clk 0:00:20]} 38. Rf6 {[%clk 0:01:12]}  Bd6 {[%clk 0:00:18]} 39. a4 {[%clk 0:01:06]}  Rc5 {[%clk 0:00:18]} 40. Nb4 {[%clk 0:00:48]}  a5 {[%clk 0:00:18]} 41. Na6 {[%clk 0:00:45]}  Rc8 {[%clk 0:00:18]} 42. Rf7+ {[%clk 0:00:40]}  Kc6 {[%clk 0:00:18]} 43. Ra7 {[%clk 0:00:28]}  Rd8 {[%clk 0:00:18]} 44. Rf7 {[%clk 0:00:22]}  Rd7 {[%clk 0:00:19]} 45. Rxf5 {[%clk 0:00:20]}  Kb7 {[%clk 0:00:19]} 46. Rg5 {[%clk 0:00:15]}  Kxa6 {[%clk 0:00:20]} 47. Rxg4 {[%clk 0:00:16]}  Re7 {[%clk 0:00:20]} 48. Rg5 {[%clk 0:00:14]}  Bc5 {[%clk 0:00:19]} 49. Rf5 {[%clk 0:00:10]}  Rc7 {[%clk 0:00:19]} 50. Re5 {[%clk 0:00:10]}  b5 {[%clk 0:00:19]} 51. axb5+ {[%clk 0:00:09]}  Kxb5 {[%clk 0:00:20]} 52. Rxe4 {[%clk 0:00:10]}  a4 {[%clk 0:00:21]} 53. Rh4 {[%clk 0:00:08]}  a3 {[%clk 0:00:21]} 54. Rh1 {[%clk 0:00:08]}  a2 {[%clk 0:00:21]} 55. g4 {[%clk 0:00:08]}  Ra7 {[%clk 0:00:22]} 56. f4 {[%clk 0:00:08]}  a1=Q {[%clk 0:00:22]} 57. Rxa1 {[%clk 0:00:09]}  Rxa1 {[%clk 0:00:22]} 58. Kf3 {[%clk 0:00:10]}  Kc4 {[%clk 0:00:22]} 59. f5 {[%clk 0:00:10]}  Re1 {[%clk 0:00:22]} 60. g5 {[%clk 0:00:09]}  Rxe3+ {[%clk 0:00:22]} 61. Kf4 {[%clk 0:00:09]}  Kd5 {[%clk 0:00:22]} 62. g6 {[%clk 0:00:09]}  Re4+ {[%clk 0:00:22]} 63. Kg5 {[%clk 0:00:09]}  Be3+ {[%clk 0:00:22]} 64. Kf6 {[%clk 0:00:09]}  Kd6 {[%clk 0:00:19]} 65. Kf7 {[%clk 0:00:09]}  Rg4 {[%clk 0:00:19]} 66. f6 {[%clk 0:00:09]}  Bd4 {[%clk 0:00:15]} 67. g7 {[%clk 0:00:09]}  Bxf6 {[%clk 0:00:15]} 68. Kxf6 {[%clk 0:00:09]}  Kd7 {[%clk 0:00:14]} 69. Kf7 {[%clk 0:00:08]}  Rf4+ {[%clk 0:00:15]} 70. Kg6 {[%clk 0:00:08]}  Rg4+ {[%clk 0:00:15]} 71. Kf7 {[%clk 0:00:08]}  Rxg7+ {[%clk 0:00:14]} 72. Kxg7 {[%clk 0:00:09]} 1/2-1/2


[Site "https://www.chess.com"]

[Event "Titled Tuesday Blitz June 27 Early 2023"]
[White "Luukkonen, Tommi"]
[Black "Jia, Haoxiang"]
[WhiteFideId "501808"]
[BlackFideId "8602999"]
[WhiteElo "2472"]
[BlackElo "2643"]
[Result "1-0"]
[Round "9"]
[TimeControl "180+2"]
[Date "2023.06.27"]
[WhiteClock "0:02:10"]
[BlackClock "0:01:44"]
[Board "43"]

1. e4 {[%clk 0:03:00]}  c5 {[%clk 0:02:37]} 2. d4 {[%clk 0:02:59]}  cxd4 {[%clk 0:02:37]} 3. Qxd4 {[%clk 0:02:59]}  Nc6 {[%clk 0:02:36]} 4. Qd3 {[%clk 0:02:59]}  d6 {[%clk 0:02:35]} 5. Nc3 {[%clk 0:02:59]}  g6 {[%clk 0:02:35]} 6. Nf3 {[%clk 0:02:59]}  Bg7 {[%clk 0:02:36]} 7. Be2 {[%clk 0:02:58]}  Nf6 {[%clk 0:02:36]} 8. h3 {[%clk 0:02:59]}  O-O {[%clk 0:02:36]} 9. O-O {[%clk 0:02:58]}  a6 {[%clk 0:02:34]} 10. Nd5 {[%clk 0:02:54]}  Nxd5 {[%clk 0:02:32]} 11. exd5 {[%clk 0:02:54]}  Bf5 {[%clk 0:02:23]} 12. Qd2 {[%clk 0:02:41]}  Na5 {[%clk 0:02:14]} 13. Nd4 {[%clk 0:02:41]}  Qc8 {[%clk 0:02:00]} 14. Nxf5 {[%clk 0:02:25]}  Qxf5 {[%clk 0:02:00]} 15. Qxa5 {[%clk 0:02:24]}  Qxc2 {[%clk 0:02:00]} 16. Qd2 {[%clk 0:02:22]}  Qa4 {[%clk 0:01:55]} 17. b3 {[%clk 0:02:20]}  Qe4 {[%clk 0:01:51]} 18. Bf3 {[%clk 0:02:11]}  Qe5 {[%clk 0:01:50]} 19. Rb1 {[%clk 0:02:11]}  Qf5 {[%clk 0:01:44]} 20. Bb2 {[%clk 0:02:10]} 1-0


[Site "https://www.chess.com"]

[Event "Titled Tuesday Blitz June 27 Early 2023"]
[White "Manukian, Artak"]
[Black "Jaskolka, Tomasz"]
[WhiteFideId "13301373"]
[BlackFideId "1170791"]
[WhiteElo "2443"]
[BlackElo "2630"]
[Result "1/2-1/2"]
[Round "9"]
[TimeControl "180+2"]
[Date "2023.06.27"]
[WhiteClock "0:00:11"]
[BlackClock "0:00:09"]
[Board "45"]

1. e4 {[%clk 0:03:00]}  d5 {[%clk 0:03:00]} 2. exd5 {[%clk 0:03:00]}  Nf6 {[%clk 0:03:00]} 3. Nc3 {[%clk 0:03:00]}  Nxd5 {[%clk 0:02:59]} 4. Bc4 {[%clk 0:03:00]}  c6 {[%clk 0:02:54]} 5. Qf3 {[%clk 0:02:59]}  Nf6 {[%clk 0:02:45]} 6. Nge2 {[%clk 0:02:57]}  Bg4 {[%clk 0:02:44]} 7. Qg3 {[%clk 0:02:51]}  e6 {[%clk 0:02:43]} 8. d4 {[%clk 0:02:50]}  Bd6 {[%clk 0:02:37]} 9. Bf4 {[%clk 0:02:49]}  Bxf4 {[%clk 0:02:37]} 10. Qxf4 {[%clk 0:02:49]}  Nbd7 {[%clk 0:02:36]} 11. f3 {[%clk 0:02:45]}  Bf5 {[%clk 0:02:33]} 12. O-O-O {[%clk 0:02:44]}  Nb6 {[%clk 0:02:33]} 13. Bb3 {[%clk 0:02:44]}  Nbd5 {[%clk 0:02:33]} 14. Nxd5 {[%clk 0:02:41]}  cxd5 {[%clk 0:02:32]} 15. g4 {[%clk 0:02:39]}  Bg6 {[%clk 0:02:32]} 16. h4 {[%clk 0:02:39]}  h5 {[%clk 0:02:27]} 17. g5 {[%clk 0:02:30]}  Ng8 {[%clk 0:02:24]} 18. Qe5 {[%clk 0:02:20]}  Rh7 {[%clk 0:02:11]} 19. Nf4 {[%clk 0:02:19]}  Ne7 {[%clk 0:02:10]} 20. Kb1 {[%clk 0:02:00]}  Qb8 {[%clk 0:02:07]} 21. Qe3 {[%clk 0:01:45]}  Qd6 {[%clk 0:01:51]} 22. Ka1 {[%clk 0:01:38]}  b5 {[%clk 0:01:47]} 23. c3 {[%clk 0:01:34]}  a5 {[%clk 0:01:44]} 24. Nxg6 {[%clk 0:01:34]}  Nxg6 {[%clk 0:01:43]} 25. Bc2 {[%clk 0:01:33]}  Rh8 {[%clk 0:01:39]} 26. Bxg6 {[%clk 0:01:25]}  fxg6 {[%clk 0:01:39]} 27. Qd3 {[%clk 0:01:25]}  Kf7 {[%clk 0:01:40]} 28. Qxb5 {[%clk 0:01:25]}  Rhb8 {[%clk 0:01:40]} 29. Qe2 {[%clk 0:01:25]}  a4 {[%clk 0:01:38]} 30. Rd2 {[%clk 0:01:20]}  a3 {[%clk 0:01:35]} 31. b3 {[%clk 0:01:14]}  Rc8 {[%clk 0:01:35]} 32. Rc2 {[%clk 0:01:14]}  Rc6 {[%clk 0:01:34]} 33. Rhc1 {[%clk 0:01:07]}  Rac8 {[%clk 0:01:34]} 34. Qe5 {[%clk 0:00:55]}  Qxe5 {[%clk 0:01:11]} 35. dxe5 {[%clk 0:00:56]}  Ke7 {[%clk 0:01:11]} 36. c4 {[%clk 0:00:49]}  Kd7 {[%clk 0:00:54]} 37. Kb1 {[%clk 0:00:48]}  Rf8 {[%clk 0:00:34]} 38. cxd5 {[%clk 0:00:40]}  Rxc2 {[%clk 0:00:33]} 39. dxe6+ {[%clk 0:00:39]}  Kxe6 {[%clk 0:00:34]} 40. Kxc2 {[%clk 0:00:33]}  Rxf3 {[%clk 0:00:32]} 41. b4 {[%clk 0:00:31]}  Kxe5 {[%clk 0:00:30]} 42. Rb1 {[%clk 0:00:16]}  Kd6 {[%clk 0:00:26]} 43. Rb3 {[%clk 0:00:13]}  Rf2+ {[%clk 0:00:26]} 44. Kc3 {[%clk 0:00:12]}  Rxa2 {[%clk 0:00:26]} 45. b5 {[%clk 0:00:13]}  Kc7 {[%clk 0:00:16]} 46. Kb4 {[%clk 0:00:11]}  Kb6 {[%clk 0:00:15]} 47. Re3 {[%clk 0:00:08]}  Rb2+ {[%clk 0:00:12]} 48. Kxa3 {[%clk 0:00:08]}  Rh2 {[%clk 0:00:12]} 49. Re6+ {[%clk 0:00:09]}  Kxb5 {[%clk 0:00:12]} 50. Rxg6 {[%clk 0:00:09]}  Rxh4 {[%clk 0:00:09]} 51. Rxg7 {[%clk 0:00:10]}  Rg4 {[%clk 0:00:09]} 52. g6 {[%clk 0:00:09]}  Kc6 {[%clk 0:00:05]} 53. Rh7 {[%clk 0:00:09]}  Rxg6 {[%clk 0:00:05]} 54. Rxh5 {[%clk 0:00:09]}  Rg3+ {[%clk 0:00:06]} 55. Kb4 {[%clk 0:00:09]}  Rg4+ {[%clk 0:00:06]} 56. Kc3 {[%clk 0:00:09]}  Rg3+ {[%clk 0:00:07]} 57. Kd4 {[%clk 0:00:10]}  Rg4+ {[%clk 0:00:08]} 58. Ke3 {[%clk 0:00:10]}  Rg3+ {[%clk 0:00:08]} 59. Kf4 {[%clk 0:00:10]}  Rc3 {[%clk 0:00:09]} 60. Re5 {[%clk 0:00:11]}  Rc5 {[%clk 0:00:09]} 61. Rxc5+ {[%clk 0:00:11]}  Kxc5 {[%clk 0:00:09]} 1/2-1/2


[Site "https://www.chess.com"]

[Event "Titled Tuesday Blitz June 27 Early 2023"]
[White "Mickiewicz, Piotr"]
[Black "Sowul, Bartosz"]
[WhiteFideId "1114891"]
[BlackFideId "1137590"]
[WhiteElo "2419"]
[BlackElo "2610"]
[Result "1-0"]
[Round "9"]
[TimeControl "180+2"]
[Date "2023.06.27"]
[WhiteClock "0:00:14"]
[BlackClock "0:00:12"]
[Board "46"]

1. Nf3 {[%clk 0:02:47]}  Nf6 {[%clk 0:02:57]} 2. g3 {[%clk 0:02:46]}  g6 {[%clk 0:02:56]} 3. Bg2 {[%clk 0:02:47]}  d5 {[%clk 0:02:54]} 4. O-O {[%clk 0:02:48]}  Bg7 {[%clk 0:02:54]} 5. d3 {[%clk 0:02:48]}  O-O {[%clk 0:02:53]} 6. Nbd2 {[%clk 0:02:47]}  c6 {[%clk 0:02:49]} 7. e4 {[%clk 0:02:46]}  Bg4 {[%clk 0:02:50]} 8. h3 {[%clk 0:02:45]}  Bxf3 {[%clk 0:02:50]} 9. Qxf3 {[%clk 0:02:45]}  e6 {[%clk 0:02:48]} 10. Qe2 {[%clk 0:02:44]}  c5 {[%clk 0:02:45]} 11. Re1 {[%clk 0:02:25]}  Nc6 {[%clk 0:02:45]} 12. c3 {[%clk 0:02:25]}  Qc7 {[%clk 0:02:38]} 13. Nf3 {[%clk 0:02:15]}  b5 {[%clk 0:02:33]} 14. Bf4 {[%clk 0:02:05]}  Qa5 {[%clk 0:02:23]} 15. e5 {[%clk 0:02:02]}  Nd7 {[%clk 0:02:21]} 16. d4 {[%clk 0:02:02]}  b4 {[%clk 0:02:13]} 17. Rac1 {[%clk 0:02:02]}  bxc3 {[%clk 0:01:52]} 18. bxc3 {[%clk 0:02:00]}  Rab8 {[%clk 0:01:52]} 19. h4 {[%clk 0:01:33]}  Qa3 {[%clk 0:01:37]} 20. Rc2 {[%clk 0:01:32]}  cxd4 {[%clk 0:01:27]} 21. cxd4 {[%clk 0:01:33]}  Nb4 {[%clk 0:01:27]} 22. Rd2 {[%clk 0:01:33]}  Nb6 {[%clk 0:01:18]} 23. h5 {[%clk 0:00:45]}  Nc4 {[%clk 0:01:10]} 24. h6 {[%clk 0:00:45]}  Nxd2 {[%clk 0:01:08]} 25. Qxd2 {[%clk 0:00:37]}  Bh8 {[%clk 0:01:05]} 26. Bg5 {[%clk 0:00:26]}  Qd3 {[%clk 0:00:53]} 27. Qf4 {[%clk 0:00:23]}  Qf5 {[%clk 0:00:43]} 28. Qh4 {[%clk 0:00:23]}  Nd3 {[%clk 0:00:42]} 29. g4 {[%clk 0:00:21]}  Qxf3 {[%clk 0:00:21]} 30. Bxf3 {[%clk 0:00:20]}  Nxe1 {[%clk 0:00:22]} 31. Bg2 {[%clk 0:00:15]}  Rb1 {[%clk 0:00:22]} 32. Kh2 {[%clk 0:00:15]}  Nxg2 {[%clk 0:00:16]} 33. Kxg2 {[%clk 0:00:16]}  f5 {[%clk 0:00:15]} 34. exf6 {[%clk 0:00:15]}  Rb2 {[%clk 0:00:14]} 35. Qg3 {[%clk 0:00:15]}  Rc8 {[%clk 0:00:14]} 36. Qd6 {[%clk 0:00:15]}  Rb7 {[%clk 0:00:12]} 37. Qxe6+ {[%clk 0:00:14]}  Kf8 {[%clk 0:00:11]} 38. Qxc8+ {[%clk 0:00:14]}  Kf7 {[%clk 0:00:12]} 39. Qxb7+ {[%clk 0:00:14]}  Ke6 {[%clk 0:00:12]} 40. Qc8+ {[%clk 0:00:14]} 1-0


[Site "https://www.chess.com"]